[Event "36th Belgrade Trophy 2023"]
[Site "Belgrade"]
[Date "2023.11.25"]
[Round "1.10"]
[White "Bjelanovic, Nemanja"]
[Black "Mezentsev, Ivan"]
[Result "0-1"]
[ECO "D03"]
[WhiteElo "1750"]
[BlackElo "2362"]
[Annotator "RC"]
[PlyCount "90"]
[EventDate "2023.10.23"]
[EventType "swiss"]
[EventCountry "SRB"]
[SourceTitle "playchess.com"]
[Source "ChessBase"]
[SourceQuality "1"]
[TimeControl "40/5400+30:900+30"]

1. d4 {[%emt 1:31:00]} Nf6 {[%emt 0:02:21]} 2. Nf3 d5 {[%emt 0:00:13]} 3. Bg5 e6 {[%emt 1:29:26]} 4. e3 {[%emt 0:01:30]} Be7 {[%emt 0:00:00]} 5. Nbd2 {[%emt 0:00:00]} O-O {[%emt 0:00:00]} 6. Bd3 b6 {[%emt 0:00:00]} 7. O-O Bb7 {[%emt 0:00:00]} 8. Ne5 Ne4 {[%emt 0:00:00]} 9. Bxe7 Qxe7 {[%emt 0:03:00]} 10. c3 {[%emt 0:03:00]} f6 {[%emt 0:00:00]} 11. Nef3 Nd7 {[%emt 0:00:00]} 12. Qc2 f5 {[%emt 0:00:00]} 13. Rfe1 Kh8 {[%emt 0:02:00]} 14. Bf1 {[%emt 0:02:00]} e5 {[%emt 0:00:30]} 15. Nxe4 {[%emt 0:00:30]} fxe4 {[%emt 0:00:30]} 16. Nxe5 {[%emt 0:00:00]} Nxe5 {[%emt 0:00:00]} 17. dxe5 c5 {[%emt 0:00:00]} 18. Rad1 Qxe5 {[%emt 0:01:30]} 19. Qe2 {[%emt 0:02:00]} Rad8 {[%emt 0:00:30]} 20. g3 {[%emt 0:00:30]} Rd6 {[%emt 0:00:00]} 21. Bg2 Rdf6 {[%emt 0:01:00]} 22. Rf1 {[%emt 0:01:00]} Qe6 {[%emt 0:00:30]} 23. Rd2 {[%emt 0:00:30]} Qf7 {[%emt 0:00:00]} 24. a3 Bc6 {[%emt 0:01:00]} 25. Rc1 {[%emt 0:01:00]} b5 {[%emt 0:00:30]} 26. b4 {[%emt 0:00:30]} a5 {[%emt 0:00:30]} 27. Rcc2 {[%emt 0:00:30]} Qe7 {[%emt 0:00:30]} 28. Rb2 {[%emt 0:00:30]} Qe5 {[%emt 0:00:00]} 29. Rdc2 Ra8 {[%emt 0:00:00]} 30. Qd2 Qe7 {[%emt 0:01:30]} 31. Ra2 {[%emt 0:01:30]} c4 {[%emt 0:00:00]} 32. Qd4 a4 {[%emt 0:00:00]} 33. h4 Raf8 {[%emt 0:01:30]} 34. Kh2 {[%emt 0:01:30]} Qf7 {[%emt 0:00:00]} 35. Kg1 Qh5 {[%emt 0:00:00]} 36. Ra1 Qf5 {[%emt 0:00:00]} 37. Raa2 Kg8 {[%emt 0:02:00]} 38. Qd1 {[%emt 0:02:00]} Bd7 {[%emt 0:00:30]} 39. Qf1 {[%emt 0:00:30]} g5 {[%emt 0:00:00]} 40. hxg5 Rg6 {[%emt 0:01:00]} 41. Qd1 {[%emt 0:16:00]} Rxg5 {[%emt 0:15:30]} 42. Qd3 {[%emt 0:00:00]} h5 {[%emt 0:00:00]} 43. Qd1 Rf7 {[%emt 0:01:00]} 44. Kh2 {[%emt 0:01:30]} h4 {[%emt 0:00:00]} 45. gxh4 {[%emt 0:00:00]} Rxg2+ {[%emt 0:00:00]} 0-1

[Event "36th Belgrade Trophy 2023"]
[Site "Belgrade"]
[Date "2023.11.25"]
[Round "1.12"]
[White "Andjelkovic, Milija"]
[Black "Enkhnar, Enkhbaatar"]
[Result "0-1"]
[ECO "E35"]
[WhiteElo "1737"]
[BlackElo "2327"]
[Annotator "RC"]
[PlyCount "62"]
[EventDate "2023.10.23"]
[EventType "swiss"]
[EventCountry "SRB"]
[SourceTitle "playchess.com"]
[Source "ChessBase"]
[SourceQuality "1"]
[TimeControl "40/5400+30:900+30"]

1. d4 {[%emt 1:31:00]} Nf6 {[%emt 1:31:00]} 2. c4 {[%emt 0:00:00]} e6 {[%emt 0:00:30]} 3. Nc3 {[%emt 0:00:00]} Bb4 {[%emt 0:00:30]} 4. Qc2 {[%emt 0:01:30]} d5 {[%emt 0:00:30]} 5. cxd5 {[%emt 0:00:30]} exd5 {[%emt 0:00:30]} 6. Bg5 {[%emt 0:00:30]} h6 {[%emt 0:00:30]} 7. Bh4 {[%emt 0:00:30]} c5 {[%emt 0:00:30]} 8. dxc5 {[%emt 0:00:30]} g5 {[%emt 0:00:00]} 9. Bg3 {[%emt 0:00:30]} Ne4 {[%emt 0:01:00]} 10. e3 {[%emt 0:00:30]} Qa5 {[%emt 0:00:30]} 11. Nge2 {[%emt 0:00:30]} Bf5 {[%emt 0:00:30]} 12. Be5 {[%emt 0:00:30]} O-O {[%emt 0:00:30]} 13. Qc1 {[%emt 0:00:30]} Nc6 {[%emt 0:00:30]} 14. Bg3 {[%emt 0:00:30]} Nxc5 {[%emt 0:00:30]} 15. Nd4 {[%emt 0:00:30]} Nxd4 {[%emt 0:00:00]} 16. exd4 {[%emt 0:00:30]} Na4 {[%emt 0:01:00]} 17. Be2 {[%emt 0:00:30]} Rfe8 {[%emt 0:00:30]} 18. Be5 {[%emt 0:00:30]} f6 {[%emt 0:00:30]} 19. Bh5 {[%emt 0:00:30]} Qa6 {[%emt 0:00:30]} 20. Be2 {[%emt 0:00:30]} Qc6 {[%emt 0:00:30]} 21. O-O {[%emt 0:00:30]} Bxc3 {[%emt 0:00:30]} 22. bxc3 {[%emt 0:00:30]} fxe5 {[%emt 0:00:30]} 23. Bh5 {[%emt 0:00:30]} Nxc3 {[%emt 0:00:30]} 24. Qd2 {[%emt 0:00:30]} Ne4 {[%emt 0:00:30]} 25. Qb2 {[%emt 0:00:30]} Rf8 {[%emt 0:00:00]} 26. dxe5 {[%emt 0:00:00]} Rac8 {[%emt 0:01:00]} 27. Rac1 {[%emt 0:01:00]} Qb6 {[%emt 0:00:30]} 28. Qa3 {[%emt 0:00:00]} Rxc1 {[%emt 0:00:00]} 29. Qxc1 {[%emt 0:00:00]} Nxf2 {[%emt 0:00:00]} 30. Rxf2 {[%emt 0:00:00]} Bg4 {[%emt 0:01:30]} 31. Qc2 {[%emt 0:00:00]} Rxf2 {[%emt 0:00:00]} 0-1

[Event "36th Belgrade Trophy 2023"]
[Site "Belgrade"]
[Date "2023.11.25"]
[Round "1.13"]
[White "Martic, Ivan"]
[Black "Andrijevic, Dimitrije"]
[Result "1-0"]
[ECO "C50"]
[WhiteElo "2292"]
[BlackElo "1734"]
[Annotator "RC"]
[PlyCount "62"]
[EventDate "2023.10.23"]
[EventType "swiss"]
[EventCountry "SRB"]
[SourceTitle "playchess.com"]
[Source "ChessBase"]
[SourceQuality "1"]
[TimeControl "40/5400+30:900+30"]

1. e4 {[%emt 0:00:04]} e5 {[%emt 0:00:12]} 2. Nf3 {[%emt 0:00:07]} Nc6 {[%emt 0:00:07]} 3. Bc4 {[%emt 0:00:07]} d6 {[%emt 0:00:07]} 4. c3 {[%emt 0:02:59]} Be7 {[%emt 0:16:05]} 5. d3 {[%emt 0:01:38]} Na5 {[%emt 0:06:48]} 6. Bb5+ {[%emt 0:01:14]} c6 {[%emt 0:00:07]} 7. Ba4 {[%emt 0:00:07]} b5 {[%emt 0:01:18]} 8. Bc2 {[%emt 0:00:09]} Nf6 {[%emt 0:03:56]} 9. O-O {[%emt 0:01:22]} O-O {[%emt 0:00:07]} 10. Re1 {[%emt 0:01:10]} Qc7 {[%emt 0:02:30]} 11. a4 {[%emt 0:01:18]} Bd7 {[%emt 0:03:26]} 12. Nbd2 {[%emt 0:00:56]} a6 {[%emt 0:03:12]} 13. b4 {[%emt 0:03:30]} Nb7 {[%emt 0:00:07]} 14. a5 {[%emt 0:00:42]} c5 {[%emt 0:04:27]} 15. Bb2 {[%emt 0:07:36]} Rac8 {[%emt 0:01:20]} 16. Rc1 {[%emt 0:03:43]} Bg4 {[%emt 0:08:00]} 17. h3 {[%emt 0:03:48]} Bh5 {[%emt 0:00:07]} 18. d4 {[%emt 0:04:34]} exd4 {[%emt 0:07:10]} 19. cxd4 {[%emt 0:00:39]} c4 {[%emt 0:00:08]} 20. Bc3 {[%emt 0:01:00]} d5 {[%emt 0:03:41]} 21. e5 {[%emt 0:00:15]} Ne8 {[%emt 0:01:51]} 22. Nf1 {[%emt 0:06:07]} Bg6 {[%emt 0:08:48]} 23. Ne3 {[%emt 0:00:45]} Bxc2 {[%emt 0:00:41]} 24. Qxc2 {[%emt 0:00:19]} Qd7 {[%emt 0:00:28]} 25. Qf5 {[%emt 0:03:50]} Qe6 {[%emt 0:01:29]} 26. Nxd5 {[%emt 0:01:03]} Qxd5 {[%emt 0:03:37]} 27. Qxc8 {[%emt 0:00:11]} g6 {[%emt 0:05:44]} 28. e6 {[%emt 0:12:19]} f6 {[%emt 0:02:40]} 29. Qd7 {[%emt 0:02:55]} Bd6 {[%emt 0:00:09]} 30. Ne5 {[%emt 0:41:03]} Ng7 {[%emt 0:02:36]} 31. Nc6 {[%emt 0:00:00]} Kh8 {[%emt 0:06:10]} 1-0

[Event "36th Belgrade Trophy 2023"]
[Site "Belgrade"]
[Date "2023.11.25"]
[Round "1.14"]
[White "Grozdanic, Milan"]
[Black "Popovic, Dragan B"]
[Result "1-0"]
[ECO "A36"]
[WhiteElo "1729"]
[BlackElo "2291"]
[Annotator "RC"]
[PlyCount "69"]
[EventDate "2023.10.23"]
[EventType "swiss"]
[EventCountry "SRB"]
[SourceTitle "playchess.com"]
[Source "ChessBase"]
[SourceQuality "1"]
[TimeControl "40/5400+30:900+30"]

1. e4 c5 2. c4 Nc6 3. Nc3 g6 4. g3 Bg7 5. Bg2 Nf6 6. Nge2 O-O 7. d3 d6 8. O-O a6 9. Rb1 Rb8 10. a3 b5 11. cxb5 axb5 12. b4 Ba6 13. h3 Nd7 14. Be3 Nd4 15. Qd2 Re8 16. Bh6 Bh8 17. Nxd4 cxd4 18. Ne2 Bb7 19. Rbc1 Ra8 20. Qb2 Qb6 21. Rc2 Qa6 22. Rc7 Nb6 23. Bg5 Na4 24. Qb3 e6 25. f4 Qb6 26. Rc2 Nc3 27. Nxc3 dxc3+ 28. Kh2 Qd4 29. f5 Rac8 30. fxe6 fxe6 31. Rcf2 d5 32. Qc2 Be5 33. Rf7 Ba8 34. Rd7 Rf8 35. Qe2 1-0

[Event "36th Belgrade Trophy 2023"]
[Site "Belgrade"]
[Date "2023.11.25"]
[Round "1.15"]
[White "Liu, Zexu"]
[Black "Aydemir, Umut"]
[Result "1-0"]
[ECO "A11"]
[WhiteElo "2286"]
[BlackElo "1722"]
[Annotator "RC"]
[PlyCount "53"]
[EventDate "2023.10.23"]
[EventType "swiss"]
[EventCountry "SRB"]
[SourceTitle "playchess.com"]
[Source "ChessBase"]
[SourceQuality "1"]
[TimeControl "40/5400+30:900+30"]

1. Nf3 {[%emt 0:00:17]} d5 {[%emt 0:00:13]} 2. g3 {[%emt 0:00:07]} g6 {[%emt 0:00:13]} 3. Bg2 {[%emt 0:00:14]} Bg7 {[%emt 0:00:05]} 4. c4 {[%emt 0:00:02]} c6 {[%emt 0:03:58]} 5. Qa4 {[%emt 0:02:22]} Qb6 {[%emt 0:16:29]} 6. O-O {[%emt 0:01:59]} Nd7 {[%emt 0:11:17]} 7. cxd5 {[%emt 0:01:22]} Nc5 {[%emt 0:04:59]} 8. Qc2 {[%emt 0:06:47]} cxd5 {[%emt 0:01:21]} 9. d3 {[%emt 0:02:45]} Bd7 {[%emt 0:05:17]} 10. Nc3 {[%emt 0:02:00]} e6 {[%emt 0:03:54]} 11. Be3 {[%emt 0:00:32]} Rc8 {[%emt 0:13:11]} 12. Rac1 {[%emt 0:07:53]} Qd8 {[%emt 0:00:56]} 13. Qd2 {[%emt 0:02:58]} b6 {[%emt 0:03:15]} 14. d4 {[%emt 0:01:44]} Nb7 {[%emt 0:02:08]} 15. Qd3 {[%emt 0:02:21]} Nd6 {[%emt 0:02:53]} 16. Bf4 {[%emt 0:01:28]} Nf5 {[%emt 0:08:37]} 17. Nb5 {[%emt 0:02:45]} Nf6 {[%emt 0:04:33]} 18. Rxc8 {[%emt 0:06:36]} Bxc8 {[%emt 0:02:25]} 19. Qa3 {[%emt 0:03:54]} Qe7 {[%emt 0:05:12]} 20. Bd6 {[%emt 0:04:45]} Nxd6 {[%emt 0:05:00]} 21. Nxd6+ {[%emt 0:00:05]} Kd8 {[%emt 0:01:12]} 22. Ne5 {[%emt 0:00:15]} Qc7 {[%emt 0:01:13]} 23. Nexf7+ {[%emt 0:01:00]} Kd7 {[%emt 0:00:32]} 24. Nb5 {[%emt 0:02:32]} Qb7 {[%emt 0:02:29]} 25. Qd6+ {[%emt 0:00:52]} Ke8 {[%emt 0:00:11]} 26. Qd8+ {[%emt 0:00:10]} Kxf7 {[%emt 0:00:09]} 27. Nd6# {[%emt 0:00:02]} 1-0

[Event "36th Belgrade Trophy 2023"]
[Site "Belgrade"]
[Date "2023.11.26"]
[Round "2.1"]
[White "Javadov, Habil"]
[Black "Nenezic, Marko"]
[Result "0-1"]
[ECO "A48"]
[WhiteElo "2026"]
[BlackElo "2499"]
[Annotator "RC"]
[PlyCount "126"]
[EventDate "2023.10.23"]
[EventType "swiss"]
[EventCountry "SRB"]
[SourceTitle "playchess.com"]
[Source "ChessBase"]
[SourceQuality "1"]
[TimeControl "40/5400+30:900+30"]

1. d4 {[%emt 0:00:05]} Nf6 {[%emt 0:00:23]} 2. Nf3 {[%emt 0:00:08]} g6 {[%emt 0:00:22]} 3. Bf4 {[%emt 0:00:17]} Bg7 {[%emt 0:00:26]} 4. e3 {[%emt 0:00:11]} d6 {[%emt 0:00:27]} 5. h3 {[%emt 0:00:07]} O-O {[%emt 0:00:32]} 6. Be2 {[%emt 1:32:42]} c5 {[%emt 0:00:41]} 7. c3 {[%emt 0:00:00]} Qb6 {[%emt 0:00:43]} 8. Qb3 {[%emt 0:00:00]} Be6 {[%emt 0:00:20]} 9. Qxb6 {[%emt 0:00:00]} axb6 {[%emt 1:31:06]} 10. a3 {[%emt 0:00:00]} cxd4 {[%emt 0:00:00]} 11. exd4 {[%emt 0:00:00]} Nd5 {[%emt 0:00:00]} 12. Bh2 {[%emt 0:00:00]} Nc7 {[%emt 0:00:00]} 13. Nbd2 {[%emt 0:00:00]} b5 {[%emt 0:00:00]} 14. O-O {[%emt 0:00:00]} Nd7 {[%emt 0:00:00]} 15. Rfe1 {[%emt 0:00:00]} Nb6 {[%emt 0:00:00]} 16. Ng5 {[%emt 0:05:00]} Bd5 {[%emt 0:00:00]} 17. Bf3 {[%emt 0:00:00]} Rfe8 {[%emt 0:00:00]} 18. Bxd5 {[%emt 0:00:00]} Ncxd5 {[%emt 0:00:00]} 19. Ngf3 {[%emt 0:00:00]} Bh6 {[%emt 0:00:00]} 20. Rab1 {[%emt 0:00:00]} f6 {[%emt 0:00:00]} 21. h4 {[%emt 0:00:00]} Kf7 {[%emt 0:00:00]} 22. Re2 {[%emt 0:03:00]} Na4 {[%emt 0:00:00]} 23. Ne4 {[%emt 0:00:00]} Red8 {[%emt 0:07:00]} 24. Rbe1 {[%emt 0:00:00]} Rd7 {[%emt 0:00:30]} 25. Rf1 {[%emt 0:01:30]} Nab6 {[%emt 0:00:00]} 26. Ne1 {[%emt 0:00:30]} f5 {[%emt 0:00:00]} 27. Ng5+ {[%emt 0:00:00]} Bxg5 {[%emt 0:00:00]} 28. hxg5 {[%emt 0:00:00]} Rh8 {[%emt 0:02:00]} 29. Nf3 {[%emt 0:00:00]} Rc7 {[%emt 0:00:00]} 30. Rfe1 {[%emt 0:00:00]} Ra8 {[%emt 0:00:00]} 31. Nd2 {[%emt 0:02:30]} b4 {[%emt 0:00:00]} 32. cxb4 {[%emt 0:00:00]} Rac8 {[%emt 0:00:00]} 33. Nb3 {[%emt 0:00:00]} Rc2 {[%emt 0:01:09]} 34. Kf1 {[%emt 0:00:12]} Na4 {[%emt 0:00:33]} 35. Rxc2 {[%emt 0:00:33]} Rxc2 {[%emt 0:00:02]} 36. Re2 {[%emt 0:00:36]} Rxb2 {[%emt 0:00:35]} 37. Rxb2 {[%emt 0:00:18]} Nxb2 {[%emt 0:00:05]} 38. Na1 {[%emt 0:00:55]} Ke6 {[%emt 0:00:46]} 39. Ke2 {[%emt 0:00:44]} f4 {[%emt 0:00:57]} 40. Kd2 {[%emt 0:00:00]} Nc4+ {[%emt 0:00:00]} 41. Kd3 {[%emt 0:00:36]} Nxa3 {[%emt 0:02:20]} 42. Ke4 {[%emt 0:00:04]} Nxb4 {[%emt 0:11:55]} 43. Bxf4 {[%emt 0:00:11]} d5+ {[%emt 0:00:22]} 44. Kf3 {[%emt 0:17:21]} Nc6 {[%emt 0:00:36]} 45. Nb3 {[%emt 0:00:00]} b6 {[%emt 0:00:24]} 46. Bc7 {[%emt 0:00:00]} Nc4 {[%emt 0:00:07]} 47. g4 {[%emt 0:00:00]} Kd7 {[%emt 0:01:33]} 48. Bf4 {[%emt 0:00:00]} N4a5 {[%emt 0:02:34]} 49. Nxa5 {[%emt 0:00:00]} bxa5 {[%emt 0:00:02]} 50. Ke3 {[%emt 0:00:00]} Nb4 {[%emt 0:00:56]} 51. Ke2 {[%emt 0:00:00]} Kc6 {[%emt 0:00:16]} 52. Bd2 {[%emt 0:00:00]} Kb5 {[%emt 0:01:48]} 53. f4 {[%emt 0:00:00]} e6 {[%emt 0:00:00]} 54. Ke3 {[%emt 0:00:00]} a4 {[%emt 0:00:00]} 55. f5 {[%emt 0:00:00]} exf5 {[%emt 0:00:00]} 56. gxf5 {[%emt 0:00:00]} gxf5 {[%emt 0:00:00]} 57. Kf4 {[%emt 0:00:00]} Nd3+ {[%emt 0:01:18]} 58. Kxf5 {[%emt 0:00:00]} Kc4 {[%emt 0:00:14]} 59. Kf6 {[%emt 0:00:00]} a3 {[%emt 0:00:06]} 60. Kg7 {[%emt 0:00:00]} a2 {[%emt 0:00:03]} 61. Kxh7 {[%emt 0:00:00]} a1=Q {[%emt 0:00:09]} 62. g6 {[%emt 0:09:00]} Qh1+ {[%emt 0:00:54]} 63. Kg8 {[%emt 0:00:00]} Qg2 {[%emt 0:00:10]} 0-1

[Event "36th Belgrade Trophy 2023"]
[Site "Belgrade"]
[Date "2023.11.26"]
[Round "2.2"]
[White "Stojanovic, Mihajlo"]
[Black "Kostic, Milutin B"]
[Result "1-0"]
[ECO "B17"]
[WhiteElo "2490"]
[BlackElo "2001"]
[Annotator "ChessBase"]
[PlyCount "71"]
[EventDate "2023.10.23"]
[EventType "swiss"]
[EventCountry "SRB"]
[SourceTitle "playchess.com"]
[Source "ChessBase"]
[SourceQuality "1"]
[TimeControl "40/5400+30:900+30"]

1. e4 {[%emt 0:00:02]} c6 {[%emt 0:00:32]} 2. d4 {[%emt 0:00:07]} d5 {[%emt 0:00:10]} 3. Nc3 {[%emt 0:00:03]} dxe4 {[%emt 0:00:53]} 4. Nxe4 {[%emt 0:00:08]} Nd7 {[%emt 0:00:09]} 5. Nf3 {[%emt 0:00:06]} Ngf6 {[%emt 0:00:30]} 6. Nxf6+ {[%emt 0:00:08]} Nxf6 {[%emt 0:00:08]} 7. c3 {[%emt 0:00:36]} Bg4 {[%emt 0:01:31]} 8. h3 {[%emt 0:00:06]} Bxf3 {[%emt 0:00:46]} 9. Qxf3 {[%emt 0:00:06]} Qd5 {[%emt 0:00:29]} 10. Be2 {[%emt 0:00:08]} e6 {[%emt 0:03:45]} 11. Qg3 {[%emt 0:02:52]} Rd8 {[%emt 0:24:30]} 12. Bf3 {[%emt 0:02:08]} Qb5 {[%emt 0:00:47]} 13. a4 {[%emt 0:00:33]} Qb3 {[%emt 0:06:30]} 14. O-O {[%emt 0:00:56]} Be7 {[%emt 0:12:00]} 15. Qxg7 {[%emt 0:01:04]} Rg8 {[%emt 0:00:29]} 16. Qh6 {[%emt 0:00:07]} Rxd4 {[%emt 0:00:37]} 17. Ra3 {[%emt 0:10:16]} Bxa3 {[%emt 0:05:06]} 18. Qxf6 {[%emt 0:00:35]} Rd5 {[%emt 0:02:01]} 19. Qh6 {[%emt 0:25:58]} Bxb2 {[%emt 0:14:19]} 20. Qxh7 {[%emt 0:00:21]} Rg6 {[%emt 0:02:26]} 21. Qh8+ {[%emt 0:31:32]} Ke7 {[%emt 0:01:23]} 22. Qh4+ {[%emt 0:09:22]} Ke8 {[%emt 0:06:14]} 23. Bxb2 {[%emt 0:06:44]} Qxb2 {[%emt 0:00:22]} 24. Bxd5 {[%emt 0:00:05]} cxd5 {[%emt 0:00:15]} 25. Qd4 {[%emt 0:00:17]} b6 {[%emt 0:06:20]} 26. Re1 {[%emt 0:01:49]} Qb3 {[%emt 0:03:52]} 27. h4 {[%emt 0:00:45]} Qa3 {[%emt 0:05:47]} 28. h5 {[%emt 0:04:27]} Rh6 {[%emt 0:00:34]} 29. g4 {[%emt 0:00:41]} Qc5 {[%emt 0:00:30]} 30. Qf4 {[%emt 0:01:18]} Qxc3 {[%emt 0:01:01]} 31. Rc1 {[%emt 0:00:37]} Qg7 {[%emt 0:00:55]} 32. Rc8+ {[%emt 0:00:26]} Ke7 {[%emt 0:00:09]} 33. Rc7+ {[%emt 0:01:29]} Ke8 {[%emt 0:00:18]} 34. Rxa7 {[%emt 0:00:30]} e5 {[%emt 0:00:31]} 35. Qf5 {[%emt 0:00:13]} Re6 {[%emt 0:00:19]} 36. Qxe6+ {[%emt 0:00:21]} 1-0

[Event "36th Belgrade Trophy 2023"]
[Site "Belgrade"]
[Date "2023.11.26"]
[Round "2.3"]
[White "Mensing, Adrian"]
[Black "Bryakin, Mikhail"]
[Result "0-1"]
[ECO "E05"]
[WhiteElo "2022"]
[BlackElo "2478"]
[Annotator "RC"]
[PlyCount "94"]
[EventDate "2023.10.23"]
[EventType "swiss"]
[EventCountry "SRB"]
[SourceTitle "playchess.com"]
[Source "ChessBase"]
[SourceQuality "1"]
[TimeControl "40/5400+30:900+30"]

1. d4 {[%emt 0:00:34]} Nf6 {[%emt 0:08:42]} 2. c4 {[%emt 0:00:33]} e6 {[%emt 0:00:05]} 3. g3 {[%emt 0:00:12]} d5 {[%emt 0:00:07]} 4. Bg2 {[%emt 0:00:06]} dxc4 {[%emt 0:00:10]} 5. Nf3 {[%emt 0:00:28]} Bb4+ {[%emt 0:00:12]} 6. Bd2 {[%emt 0:00:22]} Be7 {[%emt 0:00:09]} 7. O-O {[%emt 0:01:25]} O-O {[%emt 0:00:29]} 8. Qc2 {[%emt 0:00:22]} a6 {[%emt 0:00:49]} 9. a4 {[%emt 0:00:07]} Bd7 {[%emt 0:01:08]} 10. Bf4 {[%emt 0:01:14]} Bc6 {[%emt 0:00:38]} 11. Qxc4 {[%emt 0:00:33]} a5 {[%emt 0:05:54]} 12. Nc3 {[%emt 0:02:06]} Nbd7 {[%emt 0:02:05]} 13. Rfd1 {[%emt 0:05:18]} Nb6 {[%emt 0:01:40]} 14. Qb3 {[%emt 0:00:48]} Nfd5 {[%emt 0:02:07]} 15. Bd2 {[%emt 0:01:34]} Nxc3 {[%emt 0:05:16]} 16. Bxc3 {[%emt 0:01:04]} Qd5 {[%emt 0:12:46]} 17. Qxd5 {[%emt 0:00:26]} exd5 {[%emt 0:08:03]} 18. Ne5 {[%emt 0:02:28]} Bxa4 {[%emt 0:06:11]} 19. Rdc1 {[%emt 0:08:50]} c6 {[%emt 0:16:13]} 20. Nd3 {[%emt 0:03:59]} Bb5 {[%emt 0:00:59]} 21. Bxa5 {[%emt 0:31:36]} Na4 {[%emt 0:01:43]} 22. Bc7 {[%emt 0:12:39]} Bxd3 {[%emt 0:04:27]} 23. exd3 {[%emt 0:00:18]} Nxb2 {[%emt 0:03:32]} 24. Rab1 {[%emt 0:08:37]} Rfc8 {[%emt 0:02:59]} 25. Bb6 {[%emt 0:04:15]} Nxd3 {[%emt 0:02:32]} 26. Rc3 {[%emt 0:00:40]} Nb4 {[%emt 0:00:36]} 27. Bh3 {[%emt 0:01:18]} Rf8 {[%emt 0:01:36]} 28. Bc7 {[%emt 0:01:49]} Na2 {[%emt 0:04:15]} 29. Rc2 {[%emt 0:02:47]} Ra7 {[%emt 0:03:19]} 30. Bb6 {[%emt 0:07:37]} Ra4 {[%emt 0:00:45]} 31. Bc7 {[%emt 0:01:16]} b5 {[%emt 0:02:41]} 32. Bb6 {[%emt 0:00:38]} Rb8 {[%emt 0:04:22]} 33. Bc7 {[%emt 0:00:30]} Rba8 {[%emt 0:00:00]} 34. Re2 {[%emt 0:00:30]} Nc3 {[%emt 0:00:00]} 35. Rxe7 {[%emt 0:00:29]} Nxb1 {[%emt 0:00:00]} 36. Bd7 {[%emt 0:00:20]} Rc4 {[%emt 0:00:00]} 37. Bd6 {[%emt 0:00:41]} h6 {[%emt 0:01:04]} 38. Be8 {[%emt 0:00:27]} Rxe8 {[%emt 0:00:22]} 39. Rxe8+ {[%emt 0:00:09]} Kh7 {[%emt 0:00:01]} 40. Bc5 {[%emt 0:00:00]} Nd2 {[%emt 0:00:00]} 41. Re3 {[%emt 0:03:53]} Ne4 {[%emt 0:00:38]} 42. Bb6 {[%emt 0:00:29]} Rc1+ {[%emt 0:00:06]} 43. Kg2 {[%emt 0:00:04]} Rc2 {[%emt 0:00:04]} 44. Kg1 {[%emt 0:06:02]} Nxf2 {[%emt 0:00:25]} 45. Rf3 {[%emt 0:00:20]} Nh3+ {[%emt 0:00:07]} 46. Kh1 {[%emt 0:00:35]} Ng5 {[%emt 0:00:05]} 47. Rf1 {[%emt 0:01:39]} f6 {[%emt 0:00:07]} 0-1

[Event "36th Belgrade Trophy 2023"]
[Site "Belgrade"]
[Date "2023.11.26"]
[Round "2.4"]
[White "Kilic, Eray"]
[Black "Bayasgalan, Khishigbaatar"]
[Result "1-0"]
[ECO "B13"]
[WhiteElo "2446"]
[BlackElo "1985"]
[Annotator "RC"]
[PlyCount "89"]
[EventDate "2023.10.23"]
[EventType "swiss"]
[EventCountry "SRB"]
[SourceTitle "playchess.com"]
[Source "ChessBase"]
[SourceQuality "1"]
[TimeControl "40/5400+30:900+30"]

1. d4 {[%emt 0:00:03]} d5 {[%emt 0:00:09]} 2. Nc3 {[%emt 0:00:04]} Nf6 {[%emt 0:01:43]} 3. Bf4 {[%emt 0:00:26]} c5 {[%emt 0:02:11]} 4. e3 {[%emt 0:00:05]} cxd4 {[%emt 0:00:27]} 5. exd4 {[%emt 0:00:11]} e6 {[%emt 0:00:39]} 6. Nb5 {[%emt 0:01:18]} Na6 {[%emt 0:02:24]} 7. Nf3 {[%emt 0:02:06]} Be7 {[%emt 0:09:33]} 8. c3 {[%emt 0:00:53]} O-O {[%emt 0:01:21]} 9. Bd3 {[%emt 0:00:07]} Bd7 {[%emt 0:04:42]} 10. a4 {[%emt 0:03:32]} Ne4 {[%emt 0:05:21]} 11. h4 {[%emt 0:00:37]} Bxb5 {[%emt 0:00:30]} 12. axb5 {[%emt 0:00:30]} Nc7 {[%emt 1:07:30]} 13. Ng5 {[%emt 0:04:03]} Nf6 {[%emt 0:00:00]} 14. Bc2 {[%emt 0:07:21]} Bd6 {[%emt 0:00:00]} 15. Be5 {[%emt 0:00:30]} Nce8 {[%emt 0:00:00]} 16. Qd3 g6 {[%emt 0:00:00]} 17. h5 {[%emt 0:09:19]} Bxe5 {[%emt 0:00:00]} 18. dxe5 {[%emt 0:00:30]} Ne4 {[%emt 0:00:00]} 19. Nxe4 {[%emt 0:00:15]} dxe4 {[%emt 0:00:00]} 20. Qxd8 {[%emt 0:00:30]} Rxd8 {[%emt 0:00:00]} 21. Bxe4 {[%emt 0:01:30]} Nc7 {[%emt 0:00:00]} 22. Rxa7 {[%emt 0:00:30]} Ra8 {[%emt 0:00:00]} 23. Rxa8 Rxa8 {[%emt 0:00:00]} 24. Kd2 {[%emt 0:00:30]} Nxb5 {[%emt 0:00:00]} 25. Bxb7 {[%emt 0:00:09]} Rb8 {[%emt 0:00:00]} 26. Be4 {[%emt 0:00:32]} Rc8 {[%emt 0:00:00]} 27. h6 {[%emt 0:00:49]} f6 {[%emt 0:00:00]} 28. Bd3 {[%emt 0:01:45]} Nc7 {[%emt 0:00:00]} 29. Rh4 {[%emt 0:02:56]} Nd5 {[%emt 0:00:00]} 30. Bc4 {[%emt 0:00:40]} Rd8 {[%emt 0:00:00]} 31. exf6 {[%emt 0:02:13]} Nb6+ {[%emt 0:00:00]} 32. Kc2 {[%emt 0:00:41]} Kf7 {[%emt 0:00:00]} 33. Re4 {[%emt 0:01:04]} Rd6 {[%emt 0:00:00]} 34. f4 {[%emt 0:01:10]} Kxf6 {[%emt 0:00:00]} 35. Bd3 {[%emt 0:01:31]} Nd5 {[%emt 0:00:00]} 36. g3 {[%emt 0:02:14]} Ne7 {[%emt 0:00:00]} 37. Re5 {[%emt 0:01:32]} Nc6 {[%emt 0:01:11]} 38. Rc5 {[%emt 0:00:10]} Ne7 {[%emt 0:00:09]} 39. Be4 {[%emt 0:00:59]} Ra6 {[%emt 0:00:59]} 40. b4 {[%emt 0:00:00]} Ra2+ {[%emt 0:00:00]} 41. Kb3 {[%emt 0:01:25]} Re2 {[%emt 0:02:14]} 42. Rc4 {[%emt 0:00:05]} Re3 {[%emt 0:05:03]} 43. b5 {[%emt 0:00:12]} Nf5 {[%emt 0:00:43]} 44. Bxf5 {[%emt 0:00:23]} gxf5 {[%emt 0:00:15]} 45. b6 {[%emt 0:00:18]} 1-0